bitfinex-derivatives/quotes_ETHF0:USTF0_20240904
["timestamp","ask_amount","ask_price","bid_price","bid_amount"]
[1725414679955,3.6285,2377.4,2377.2,9.21e-06]
[1725414680154,3.2078,2377.4,2377.2,0.42072921]
[1725414680360,3.2078,2377.4,2377.2,9.21e-06]
[1725414680749,0.4207,2377.3,2377.2,9.21e-06]
[1725414681159,5.67887,2377.3,2377.2,9.21e-06]
[1725414681357,6.08707,2377.3,2377.2,9.21e-06]
[1725414682158,10.29347,2377.3,2377.2,9.21e-06]
[1725414683647,9.3578275,2377.3,2377.2,9.21e-06]
[1725414683860,10.4095975,2377.3,2377.2,9.21e-06]
[1725414684056,16.03395704,2377.3,2377.2,9.21e-06]
[1725414684363,0.42083,2376.6,2376.5,6.8965]
[1725414684858,0.42083,2376.6,2376.5,4.5858]
[1725414685067,0.42083,2376.6,2376.2,3.62869]
[1725414685068,0.42083,2376.6,2376.2,2.3299]
[1725414685257,0.42087,2376.4,2376.2,2.33619921]
[1725414685463,3.2078,2376.4,2376.2,2.33619921]
[1725414685655,3.62867,2376.4,2376.2,2.33619921]
[1725414686759,3.2078,2376.4,2376.2,2.33619921]
[1725414686964,3.62867,2376.4,2376.2,2.33619921]
[1725414687157,0.42088,2376.3,2376.2,0.00629921]
[1725414687359,3.62867,2376.4,2376.2,0.00629921]
[1725414688261,3.2078,2376.4,2376.2,0.00629921]
[1725414688456,3.62867,2376.4,2376.2,0.00629921]
[1725414689457,11.0933,2376.3,2376.2,9.21e-06]
[1725414689660,1.05245,2375.8,2375.2,6.8108]
[1725414689870,0.42105,2375.4,2375.2,6.8108]
[1725414690163,0.42106,2375.3,2375.2,4.6436]
[1725414690362,0.42111,2375.0,2374.6,0.20998788]
[1725414690566,0.42111,2375.0,2374.7,6.6439]
[1725414690567,0.42743393,2375.0,2374.7,6.6439]
[1725414690864,0.42116,2374.7,2374.6,0.00429405]
[1725414691167,1.47408,2374.7,2374.6,0.00429405]
[1725414691360,1.47408,2374.7,2373.8,4.4767]
[1725414691361,15.62412,2374.7,2373.8,4.4767]
[1725414691570,3.2078,2374.2,2373.8,4.4767]
[1725414691759,3.2078,2374.2,2373.6,3.2078]
[1725414691760,3.2078,2373.9,2373.6,0.42136]
[1725414691965,1.05912393,2375.0,2373.6,0.42136]
[1725414691966,0.00631393,2375.0,2374.6,0.42118]
[1725414692164,0.00631393,2375.0,2374.1,4.36]
[1725414692467,0.00631393,2375.0,2374.2,2.3254]
[1725414692670,0.00631393,2375.0,2374.6,0.42117]
[1725414692867,0.00631393,2375.0,2374.3,4.4934]
[1725414692868,0.42114,2374.9,2374.3,4.91462]
[1725414693167,4.36,2374.9,2374.3,2.1654]
[1725414693567,3.62902,2374.5,2373.8,0.42132]
[1725414693766,0.42122,2374.4,2373.8,2.68942]
[1725414694166,3.629,2374.5,2373.9,0.4213]
[1725414694369,2.183,2374.8,2373.8,2.2681]
[1725414694370,0.42119,2374.6,2373.8,2.2681]
[1725414694572,3.2078,2374.2,2373.9,0.42129]
[1725414694774,3.2078,2374.2,2373.8,2.2681]
[1725414694964,3.2078,2374.2,2373.9,4.212]
[1725414695163,0.42119,2374.6,2373.9,4.212]
[1725414695370,3.62897,2374.7,2374.2,0.42125]
[1725414695575,3.2078,2374.3,2374.2,0.42125]
[1725414695773,4.36,2374.9,2374.3,0.42123]
[1725414695774,3.2078,2374.7,2374.3,0.42123]
[1725414696076,3.62896,2374.7,2374.2,0.42124]
[1725414696278,3.62896,2374.7,2373.8,2.2681]
[1725414696279,0.42119,2374.6,2374.1,0.42127]
[1725414696578,3.2078,2374.4,2374.1,0.42127]
[1725414696765,3.2078,2374.4,2374.0,0.42128]
[1725414697064,3.2078,2374.4,2373.8,2.2681]
[1725414697065,3.62902,2374.4,2373.9,0.42129]
[1725414697459,3.2078,2374.4,2374.0,0.42129]
[1725414697664,0.42124,2374.3,2373.9,0.42131]
[1725414697866,3.2078,2374.1,2373.8,2.2681]
[1725414698059,3.2078,2374.1,2373.7,2.328]
[1725414698060,0.42131,2373.9,2373.7,2.328]
[1725414698260,4.261,2374.1,2373.5,3.2078]
[1725414698471,0.42138,2373.5,2373.2,2.2292]
[1725414698868,0.42768393,2373.6,2373.2,6.4428]
[1725414699169,0.00631393,2373.6,2373.2,2.2292]
[1725414699371,0.00631393,2373.6,2373.5,0.42138]
[1725414699876,0.00631393,2373.6,2373.5,10.63418]
[1725414700079,0.00631393,2373.6,2373.5,0.42138]
[1725414700671,0.00631393,2373.6,2373.5,4.63418]
[1725414701075,0.00631393,2373.6,2373.5,0.42138]
[1725414701380,0.42767393,2373.6,2373.2,2.65062]
[1725414701571,0.00631393,2373.6,2373.2,2.65062]
[1725414701876,0.42139,2373.5,2373.2,2.2292]
[1725414702076,0.42768393,2373.6,2373.2,2.65063]
[1725414702375,0.00631393,2373.6,2373.2,2.2292]
[1725414702579,0.00631393,2373.6,2373.0,8.00996]
[1725414702580,0.4214,2373.4,2373.0,8.00996]
[1725414702982,0.4214,2373.4,2373.0,4.3807]
[1725414703177,0.42141,2373.3,2373.0,4.3807]
[1725414703374,0.42139,2373.4,2373.0,4.3807]
[1725414703878,0.42142,2373.3,2373.0,4.3807]
[1725414704171,3.2078,2373.5,2373.3,0.4214]
[1725414704379,0.00631393,2373.6,2373.0,4.59047856]
[1725414704580,0.00631393,2373.6,2373.3,0.42141]
[1725414704775,0.42767393,2373.6,2373.2,0.42142]
[1725414704983,0.00631393,2373.6,2373.4,0.42139]
[1725414705483,0.00631393,2373.6,2373.5,0.42138]
[1725414705777,0.00631393,2373.6,2373.2,3.2078]
[1725414705979,0.42767393,2373.6,2373.2,3.2078]
[1725414706276,0.42767393,2373.6,2373.2,0.42142]
[1725414706581,0.00631393,2373.6,2373.2,0.42141]
[1725414706765,0.00631393,2373.6,2373.3,0.42141]
[1725414706972,0.00631393,2373.6,2373.5,0.42138]
[1725414707371,0.00631393,2373.6,2373.5,4.63418]
[1725414708173,0.00631393,2373.6,2373.5,10.63418]
[1725414708677,3.2078,2374.5,2373.6,1.05341]
[1725414708873,3.2078,2374.5,2374.1,0.42125]
[1725414708874,3.629,2374.5,2374.1,0.42125]
[1725414709075,3.2078,2374.5,2373.7,7.783]
[1725414709285,0.42123,2374.4,2374.0,0.42128]
[1725414709577,0.42122,2374.4,2374.0,0.42128]
[1725414709781,0.00631393,2374.4,2374.3,0.42123]
[1725414709978,0.00631393,2374.4,2374.0,0.00631393]
[1725414710380,0.00631393,2374.4,2374.1,0.42126]
[1725414710584,0.42125,2374.2,2374.0,0.00631393]
[1725414710773,0.42127,2374.1,2374.0,0.00631393]
[1725414711169,3.62906,2374.2,2374.0,0.00631393]
[1725414711379,3.2078,2374.2,2374.0,0.00631393]
[1725414711582,11.92969,2374.1,2372.7,0.212]
[1725414711874,3.62915,2373.7,2373.4,0.42139]
[1725414712079,3.2078,2373.7,2372.9,6.6506]
[1725414712280,0.42133,2373.8,2373.4,0.42138]
[1725414712480,0.42133,2373.8,2372.9,6.6506]
[1725414712481,3.2078,2374.0,2373.6,0.42134]
[1725414712779,0.42133,2373.8,2373.4,0.42138]
[1725414713485,3.2078,2374.0,2373.2,2.316]
[1725414713686,3.2078,2374.0,2373.4,0.42138]
[1725414713977,3.62916,2373.7,2373.3,0.42141]
[1725414714179,3.2078,2373.7,2373.3,0.42141]
[1725414714370,3.2078,2373.7,2373.4,0.42138]
[1725414714574,3.62915,2373.7,2373.3,2.6455]
[1725414715280,3.2078,2373.7,2373.4,0.42138]
[1725414715785,3.2078,2373.7,2373.5,0.42138]
[1725414716376,3.2078,2373.7,2373.3,2.2241]
[1725414716780,3.2078,2373.7,2373.4,0.42139]
[1725414716983,0.42131,2373.9,2373.5,0.42137]
[1725414717377,0.42131,2373.9,2373.6,0.42135]
[1725414717577,5.5123,2374.1,2373.4,2.3429]
[1725414717883,5.5123,2374.1,2373.8,0.42132]
[1725414718183,5.5123,2374.1,2373.9,0.4213]
[1725414718389,5.5123,2374.1,2373.8,0.42131]
[1725414719182,5.5123,2374.1,2373.4,5.5507]
[1725414719183,3.2078,2374.1,2373.4,5.5507]
[1725414719378,5.60561393,2374.4,2373.6,1.05341]
[1725414719579,2.39781393,2374.4,2373.7,7.5678]
[1725414719779,2.39781393,2374.4,2374.2,0.42124]
[1725414720379,2.39781393,2374.4,2373.9,4.67284888]
[1725414720581,0.00631393,2374.4,2374.3,0.42123]
[1725414720786,0.00631393,2374.4,2374.2,0.42124]
[1725414720997,0.42124,2374.3,2374.0,0.42128]
[1725414721189,0.00631393,2374.4,2373.7,3.2078]
[1725414721190,3.21411393,2374.4,2373.7,3.2078]
[1725414721487,0.4213,2374.0,2373.7,3.2078]
[1725414721892,2.3346,2374.1,2373.8,0.42131]
[1725414722185,3.21411393,2374.4,2373.9,0.21408467]
[1725414722387,3.63533393,2374.4,2374.1,0.42127]
[1725414722582,3.63533393,2374.4,2374.2,0.42125]
[1725414722583,3.21411393,2374.4,2374.2,0.42125]
[1725414722886,3.21411393,2374.4,2373.7,3.2078]
[1725414723082,3.63533393,2374.4,2374.1,0.42127]
[1725414723389,3.63533393,2374.4,2373.7,3.2078]
[1725414723390,0.00631393,2374.4,2374.3,0.42123]
[1725414723979,0.00631393,2374.4,2374.3,4.63323]
[1725414724888,0.00631393,2374.4,2374.3,10.63323]
[1725414725588,0.00631393,2374.4,2374.3,4.63323]
[1725414726197,0.00631393,2374.4,2374.1,2.60436]
[1725414726490,0.00631393,2374.4,2374.3,0.42123]
[1725414726786,3.2078,2375.4,2375.2,0.42107]
[1725414727088,4.36,2375.7,2375.2,0.42107]
[1725414727089,0.42101,2375.6,2375.2,0.42107]
[1725414727292,3.2078,2375.7,2374.4,4.26085]
[1725414727293,0.42099,2375.7,2375.3,0.42105]
[1725414727787,0.42101,2375.6,2375.3,0.00631393]
[1725414728980,3.63510393,2375.7,2375.3,0.42737393]
[1725414729181,0.42730393,2375.7,2375.3,0.42737393]
[1725414729381,3.63511393,2375.7,2375.3,0.42737393]
[1725414730181,3.21411393,2375.7,2375.3,0.00631393]
[1725414730384,0.42103,2375.5,2375.3,0.00631393]
[1725414730889,5.93674,2375.4,2375.3,0.00631393]
[1725414731292,6.93854,2375.4,2375.3,0.00631393]
[1725414731483,2.72894,2375.4,2375.3,0.00631393]
[1725414731684,2.3079,2375.4,2375.3,0.00631393]
[1725414732594,3.21411393,2375.7,2375.5,0.42102]
[1725414732890,3.63510393,2375.7,2375.3,0.42736393]
[1725414733097,0.42730393,2375.7,2375.3,0.42736393]
[1725414733489,3.21411393,2375.7,2375.3,0.00631393]
[1725414733690,0.42104,2375.4,2375.3,0.00631393]
[1725414733992,0.42102,2375.6,2375.3,0.00631393]
[1725414734195,0.42102,2375.5,2375.3,0.00631393]
[1725414734394,0.42104,2375.4,2375.3,0.00631393]
[1725414734594,3.21411393,2375.7,2375.3,0.00631393]
[1725414734789,0.42101,2375.6,2375.3,0.00631393]
[1725414735093,0.42103,2375.5,2375.3,0.00631393]
[1725414735297,2.76013,2375.5,2375.3,0.00631393]
[1725414735597,2.3391,2375.5,2375.3,0.00631393]
[1725414736195,0.42104,2375.4,2375.3,0.00631393]
[1725414736592,8.89105,2375.4,2375.3,0.00631393]
[1725414736795,0.42112,2375.0,2374.7,0.42116]
[1725414736989,4.26041,2375.4,2374.7,0.42116]
[1725414737295,0.42111,2375.0,2374.7,0.42115]
[1725414737491,0.4211,2375.1,2374.8,0.42115]
[1725414737691,3.2078,2375.4,2374.6,6.6699]
[1725414737900,2.3391,2375.5,2375.3,0.42106]
[1725414738086,2.3391,2375.5,2375.3,0.42105]
[1725414738396,2.3391,2375.5,2375.4,0.42104]
[1725414738796,0.00631393,2375.7,2375.6,0.421]
[1725414739296,0.00631393,2375.7,2375.6,4.6306]
[1725414740395,0.00631393,2375.7,2375.6,12.8576]
[1725414740596,0.00631393,2375.7,2375.6,6.8576]
[1725414740804,0.00631393,2375.7,2375.6,10.0654]
[1725414741790,0.00631393,2375.7,2375.6,12.8576]
[1725414742195,0.00631393,2375.7,2375.6,6.8576]
[1725414742785,0.00631393,2375.7,2375.6,12.8576]
[1725414743299,0.00201989,2375.7,2375.6,12.8576]
[1725414743499,0.00201989,2375.7,2375.6,10.0654]
[1725414743796,0.00201989,2375.7,2375.6,16.0654]
[1725414744196,0.00201989,2375.7,2375.6,10.0654]
[1725414744397,0.00201989,2375.7,2375.6,16.0654]
[1725414744901,2.2969,2376.3,2376.2,0.4209]
[1725414745105,3.2078,2377.0,2376.2,7.5678]
[1725414745401,2.2223,2377.1,2376.9,0.42077]
[1725414745598,2.2223,2377.1,2376.5,4.36]
[1725414745897,2.2223,2377.1,2376.9,0.42076]
[1725414746094,0.00631393,2377.0,2376.9,0.42076]
[1725414746492,0.00631393,2377.0,2376.8,0.42078]
[1725414746693,0.00631393,2377.0,2376.7,0.20598809]
[1725414746893,0.00631393,2377.0,2376.8,0.42079]
[1725414747099,0.00631393,2377.0,2376.9,0.42077]
[1725414747601,0.00631393,2377.0,2376.9,10.62797]
[1725414747894,0.00631393,2377.0,2376.9,4.62797]
[1725414748090,0.00631393,2377.0,2376.9,12.81777]
[1725414748287,0.00631393,2377.0,2376.9,6.81777]
[1725414748996,0.00631393,2377.0,2376.9,12.81777]
[1725414749188,0.00631393,2377.0,2376.9,6.81777]
[1725414750800,3.2078,2377.7,2376.9,12.397]
[1725414750994,3.2078,2378.0,2377.3,4.36]
[1725414751393,0.42062,2377.8,2377.4,0.42068]
[1725414751696,3.2078,2377.7,2377.0,6.6768]
[1725414751895,0.00631393,2377.6,2377.4,0.42068]
[1725414752096,0.42068,2377.5,2377.1,3.62853]
[1725414752401,2.23361393,2377.6,2377.3,0.4207]
[1725414752701,2.23361393,2377.6,2377.1,3.2078]
[1725414752898,2.23361393,2377.6,2377.2,0.42072]
[1725414753101,2.65426393,2377.6,2377.2,0.42071]
[1725414753299,2.23361393,2377.6,2377.1,3.2078]
[1725414753507,3.2078,2377.4,2376.6,0.00631393]
[1725414753699,0.4208,2376.8,2376.6,0.00631393]
[1725414754106,0.42078,2376.9,2376.6,0.00631393]
[1725414754408,2.44037,2377.0,2376.6,0.00631393]
[1725414754610,0.42078,2376.9,2376.6,0.00631393]
[1725414754799,2.0569,2376.9,2376.7,0.4208]
[1725414754999,2.0569,2376.9,2376.6,0.00631393]
[1725414755404,0.4208,2376.8,2376.6,0.00631393]
[1725414755604,2.0569,2376.9,2376.6,0.00631393]
[1725414755804,2.0569,2376.9,2376.6,0.42714393]
[1725414756397,2.0569,2376.9,2376.7,0.42081]
[1725414756902,2.0569,2376.9,2376.8,0.42079]
[1725414757296,2.0569,2376.9,2376.7,0.62594309]
[1725414757496,3.6285,2377.4,2377.0,0.42076]
[1725414757705,0.42071,2377.3,2376.9,0.42076]
[1725414758303,3.2078,2377.4,2376.7,2.24604309]
[1725414758611,0.42075,2377.1,2376.7,2.66684309]
[1725414759007,0.42073,2377.2,2376.8,0.42079]
[1725414759308,0.42074,2377.1,2376.8,0.42079]
[1725414759508,3.2078,2377.4,2376.7,2.24604309]
[1725414759717,0.42072,2377.3,2376.9,0.42077]
[1725414760107,0.42072,2377.2,2376.8,0.42078]
[1725414760499,0.42072,2377.2,2376.9,0.42077]
[1725414760704,3.2078,2377.4,2376.7,2.24604309]
[1725414761015,0.42073,2377.2,2376.8,0.42078]
[1725414761306,0.42073,2377.2,2376.9,0.42077]
[1725414761704,0.42073,2377.2,2376.8,0.42078]
[1725414762210,3.62849,2377.4,2376.7,2.24604309]
[1725414762418,4.59908,2377.5,2376.7,5.45384309]
[1725414762606,4.59908,2377.5,2377.0,0.42075]
[1725414762908,4.1784,2377.5,2377.4,0.42069]
[1725414763106,1.9938,2377.5,2377.4,0.42069]
[1725414763409,1.9938,2377.5,2377.3,0.42069]
[1725414763610,1.9938,2377.5,2377.0,3.2078]
[1725414763811,0.4207,2377.4,2377.0,3.62855]
[1725414764611,2.41448,2377.5,2377.1,0.42074]
[1725414765610,1.9938,2377.5,2377.2,0.42071]
[1725414765801,0.42069,2377.4,2377.0,3.2078]
[1725414766004,0.42069,2377.4,2377.0,3.62854]
[1725414766209,0.42071,2377.3,2377.0,3.2078]
[1725414766410,2.46981,2377.3,2377.0,3.2078]
[1725414766609,2.0491,2377.3,2377.0,3.62855]
[1725414767010,2.0491,2377.3,2377.0,3.2078]
[1725414767211,2.0491,2377.3,2377.1,0.42073]
[1725414767409,1.9938,2377.5,2377.1,4.2064]
[1725414767610,1.9938,2377.5,2377.2,0.42071]
[1725414768612,1.9938,2377.5,2377.3,0.4207]
[1725414768920,2.05541393,2377.6,2377.5,0.42067]
[1725414769115,45.16,2379.4,2377.5,0.42067]
[1725414769116,3.2078,2378.2,2378.1,0.42056]
[1725414769415,0.4205,2378.5,2378.1,8.98536]
[1725414769416,3.2078,2378.5,2378.1,8.98536]
[1725414769724,3.2078,2378.5,2378.1,4.78056]
[1725414769912,3.2078,2378.8,2378.1,4.36]
[1725414770215,0.00631393,2378.7,2378.4,4.36]
[1725414770416,0.00631393,2378.7,2378.5,0.42048]
[1725414770616,0.00631393,2378.7,2378.6,0.42047]
[1725414770817,0.00631393,2378.7,2378.2,0.00631393]
[1725414771317,0.4205,2378.5,2378.2,0.00631393]
[1725414771514,0.00631393,2378.7,2378.2,4.36631393]
[1725414772017,0.42049,2378.5,2378.2,0.00631393]
[1725414772617,0.00631393,2378.7,2378.2,0.00631393]
[1725414772821,3.21411393,2378.7,2378.2,0.00631393]
[1725414773221,3.2078,2378.6,2378.2,0.00631393]
[1725414773418,0.4205,2378.5,2378.2,0.00631393]
[1725414774216,0.00631393,2378.7,2378.2,0.00631393]
[1725414774416,0.42049,2378.5,2378.2,0.00631393]
[1725414774921,3.2078,2378.6,2378.2,0.00631393]
[1725414775225,0.42052,2378.4,2378.2,0.00631393]
[1725414775523,3.2078,2378.6,2378.2,0.00631393]
[1725414775722,3.62833,2378.3,2378.2,0.00631393]
[1725414776224,0.00631393,2378.7,2378.2,0.00631393]
[1725414776225,0.42052,2378.4,2378.2,0.00631393]
[1725414776416,0.42053,2378.3,2378.2,0.00631393]
[1725414776618,0.42052,2378.4,2378.2,0.00631393]
[1725414776825,3.6283,2378.5,2378.2,0.00631393]
[1725414777025,0.42051,2378.4,2378.2,0.00631393]
[1725414777223,0.42053,2378.3,2378.2,0.00631393]
[1725414777423,0.42052,2378.4,2378.2,0.00631393]
[1725414777719,0.42053,2378.3,2378.2,0.00631393]
[1725414778228,3.2078,2378.5,2378.2,0.00631393]
[1725414778418,3.6283,2378.5,2378.2,0.00631393]
[1725414778728,3.62829,2378.5,2378.2,0.00631393]
[1725414778921,3.2078,2378.5,2378.2,0.00631393]
[1725414779120,3.62829,2378.5,2378.2,0.00631393]
[1725414779320,3.2078,2378.5,2378.2,0.00631393]
[1725414779721,3.2078,2378.5,2378.2,0.42685393]
[1725414779916,3.2078,2378.5,2378.2,0.00631393]
[1725414780223,0.00631393,2378.7,2378.4,0.4205]
[1725414780520,0.00631393,2378.7,2378.3,0.42051]
[1725414780823,0.00631393,2378.7,2378.2,3.21411393]
[1725414781016,0.42052,2378.4,2378.2,0.00631393]
[1725414781221,0.42053,2378.3,2378.2,0.00631393]
[1725414783232,0.00631393,2378.7,2378.2,0.00631393]
[1725414783730,3.62828,2378.6,2378.2,0.42685393]
[1725414784228,0.42049,2378.5,2378.2,0.42685393]
[1725414784426,3.62828,2378.6,2378.3,0.42052]
[1725414784626,0.42678393,2378.7,2378.3,0.42052]
[1725414785431,0.00631393,2378.7,2378.5,0.42048]
[1725414785629,0.00631393,2378.7,2378.6,0.42047]
[1725414786030,0.00631393,2378.7,2378.6,4.62447]
[1725414787432,0.00631393,2378.7,2378.6,0.42047]
[1725414787823,0.00631393,2378.7,2378.5,4.36]
[1725414788027,0.00631393,2378.7,2378.4,3.2078]
[1725414788226,0.00631393,2378.7,2378.2,4.36631393]
[1725414788836,0.00631393,2378.7,2378.5,0.42048]
[1725414790230,0.00631393,2378.7,2378.6,0.42047]
[1725414791232,0.00631393,2378.7,2378.6,7.83227]
[1725414791631,0.00631393,2378.7,2378.6,9.86167]
[1725414792235,0.00631393,2378.7,2378.6,0.42047]
[1725414792535,0.00631393,2378.7,2378.6,6.65387]
[1725414792832,0.00631393,2378.7,2378.6,2.44987]
[1725414793231,0.00631393,2378.7,2378.5,4.78048]
[1725414793531,0.00631393,2378.7,2378.5,0.42048]
[1725414794129,0.00631393,2378.7,2378.3,3.2078]
[1725414794525,0.00631393,2378.7,2378.6,0.42047]
[1725414794927,0.00631393,2378.7,2378.5,0.42048]
[1725414795125,0.00631393,2378.7,2378.3,3.2078]
[1725414795331,0.42053,2378.3,2378.2,0.00631393]
[1725414795733,4.62533,2378.3,2378.2,0.00631393]
[1725414795932,10.62533,2378.3,2378.2,0.00631393]
[1725414796231,11.25614,2378.3,2377.4,6.4056]
[1725414796532,0.42059,2378.0,2377.5,0.42066]
[1725414796733,0.42059,2378.0,2377.4,0.42068]
[1725414796928,4.1725,2377.9,2377.4,0.42068]
[1725414797131,4.1725,2377.9,2377.4,0.00631393]
[1725414797333,4.1725,2377.9,2377.4,0.42699393]
[1725414797636,4.1725,2377.9,2377.7,0.42063]
[1725414797841,4.1725,2377.9,2377.6,0.42064]
[1725414798438,0.42067,2377.5,2377.4,0.00631393]
[1725414798631,0.42067,2377.5,2376.6,1.05038998]
[1725414798632,7.5678,2377.5,2376.6,1.05038998]
[1725414798832,3.62852,2377.3,2376.6,1.05038998]
[1725414799033,2.1633,2377.2,2376.6,1.05038998]
[1725414799235,4.2879,2377.2,2376.6,1.47120998]
[1725414799435,4.70862,2377.2,2376.6,1.05038998]
[1725414799642,4.2879,2377.2,2376.6,1.05038998]
[1725414799945,0.00631393,2377.1,2376.7,0.00631393]
[1725414800243,0.00631393,2377.1,2376.7,0.42711393]
[1725414800442,0.00631393,2377.1,2376.7,0.00631393]
[1725414801536,0.00631393,2377.1,2376.7,0.42712393]
[1725414802040,0.00631393,2377.1,2377.0,1.0]
[1725414802430,4.21351393,2377.1,2377.0,1.0]
[1725414802635,0.00631393,2377.1,2377.0,1.42076]
[1725414802832,0.00631393,2377.1,2377.0,1.0]
[1725414803239,4.63425393,2377.1,2377.0,1.0]
[1725414803436,10.63425393,2377.1,2377.0,1.0]
[1725414804032,10.21351393,2377.1,2377.0,1.0]
[1725414804636,4.21351393,2377.1,2377.0,1.0]
[1725414805242,0.00631393,2377.1,2377.0,1.0]
[1725414805435,4.21351393,2377.1,2377.0,1.0]
[1725414805641,0.00631393,2377.1,2377.0,1.0]
[1725414808538,4.63425393,2377.1,2377.0,1.0]
[1725414808740,4.21351393,2377.1,2377.0,1.0]
[1725414808943,4.63425393,2377.1,2377.0,1.0]
[1725414809338,4.21351393,2377.1,2377.0,1.0]
[1725414809539,4.63425393,2377.1,2377.0,1.0]
[1725414810530,10.63425393,2377.1,2377.0,1.0]
[1725414810730,11.68610393,2377.1,2377.0,1.0]
[1725414810934,0.42079,2376.8,2376.7,0.00631393]
[1725414811135,3.62859,2376.8,2376.7,0.00631393]
[1725414811341,13.83579,2376.8,2376.7,0.00631393]
[1725414811544,13.83579,2376.8,2376.5,3.2078]
[1725414811545,0.42083,2376.6,2376.5,3.2078]
[1725414812138,0.42085,2376.5,2376.2,0.4209]
[1725414812438,0.42094,2376.0,2375.7,4.78098]
[1725414812641,0.42093,2376.1,2375.8,0.42097]
[1725414812845,0.42093,2376.0,2375.7,0.42098]
[1725414813031,0.42093,2376.0,2375.4,8.91856051]
[1725414813234,2.1421,2376.1,2375.4,8.91856051]
[1725414813441,2.56303,2376.1,2375.7,0.42098]
[1725414813743,0.42093,2376.0,2375.7,0.42098]
[1725414814450,4.73502,2376.1,2375.8,0.42097]
[1725414814646,0.42088,2376.4,2375.6,4.36]
[1725414814840,0.42089,2376.3,2375.6,4.36]
[1725414815043,4.3862,2376.5,2376.0,0.42092]
[1725414815044,4.80705,2376.5,2376.0,0.42092]
[1725414815342,4.80706,2376.5,2375.6,4.36]
[1725414815543,0.42086,2376.4,2376.0,0.42092]
[1725414816049,0.42088,2376.3,2375.9,0.42094]
[1725414816347,3.62868,2376.3,2375.9,0.42094]
[1725414816749,3.2078,2376.3,2375.6,4.36]
[1725414816952,4.3862,2376.5,2375.8,3.2078]
[1725414817244,4.3862,2376.5,2376.2,0.42089]
[1725414817446,3.62862,2376.7,2376.3,0.42087]
[1725414817653,3.62862,2376.7,2376.1,0.42091]
[1725414817654,0.42085,2376.5,2376.1,0.42091]
[1725414817841,0.42092,2376.1,2375.6,4.36]
[1725414818146,0.42091,2376.2,2375.8,0.42096]
[1725414819248,2.1065,2376.3,2375.6,8.6104]
[1725414819940,2.1065,2376.3,2376.0,0.42093]
[1725414820140,2.1065,2376.3,2375.6,8.6104]
[1725414820348,2.1065,2376.3,2375.9,0.42094]
[1725414820740,2.52738,2376.3,2375.9,0.42094]
[1725414821151,0.42094,2376.0,2375.6,9.03139]
[1725414821347,2.1065,2376.3,2375.6,4.2504]
[1725414821648,0.42099,2375.7,2375.5,3.2078]
[1725414821949,0.00631393,2375.8,2375.2,7.5446]
[1725414822149,0.42103,2375.5,2375.2,3.2078]
[1725414822354,0.42104,2375.5,2375.0,0.62923687]
[1725414823850,1.05252,2375.6,2374.8,4.78114]
[1725414824050,5.79295,2375.4,2374.9,0.42113]
[1725414824255,5.79295,2375.4,2374.8,4.78114]
[1725414824256,0.42106,2375.3,2374.8,4.78114]
[1725414824446,0.42108,2375.2,2374.8,0.42114]
[1725414824956,0.42107,2375.3,2374.9,0.42113]
[1725414825246,5.3719,2375.4,2374.8,0.42115]
[1725414825452,5.79295,2375.4,2374.7,6.6721123]
[1725414826154,0.42102,2375.6,2375.1,0.42108]
[1725414826343,5.4737,2375.7,2375.1,0.42108]
[1725414826344,0.42103,2375.5,2375.1,0.42108]
[1725414826551,0.42103,2375.5,2375.1,0.42109]
[1725414827749,0.42102,2375.6,2375.2,0.42108]
[1725414827947,8.0588,2375.7,2374.9,4.36]
[1725414828152,0.421,2375.6,2374.9,4.36]
[1725414828353,8.17951689,2375.7,2375.3,0.42105]
[1725414828654,8.05879,2375.7,2375.3,0.42106]
[1725414829151,7.6378,2375.7,2375.5,0.42102]
[1725414829953,7.6378,2375.7,2375.5,0.42101]
[1725414829954,3.2078,2375.7,2375.5,0.42101]
[1725414830348,0.00631393,2375.8,2375.5,0.42101]
[1725414830549,0.00631393,2375.8,2375.6,0.421]
[1725414830853,0.00631393,2375.8,2375.7,0.42099]
[1725414831053,0.00631393,2375.8,2375.6,0.42099]
[1725414832351,0.00631393,2375.8,2375.6,0.421]
[1725414833159,0.00631393,2375.8,2375.5,0.42101]
[1725414833555,0.00631393,2375.8,2375.6,0.421]
[1725414833755,0.00631393,2375.8,2375.3,4.3877]
[1725414833956,0.42729393,2375.8,2375.4,0.42104]
[1725414834860,0.42104,2375.4,2375.2,2.2588]
[1725414835053,0.42105,2375.4,2374.9,2.2013]
[1725414835254,0.42105,2375.4,2375.0,0.4211]
[1725414835450,2.64752,2375.6,2375.2,0.42106]
[1725414835761,3.2078,2375.7,2375.1,4.36]
[1725414835962,3.2078,2375.7,2374.9,2.2013]
[1725414835963,0.00631393,2375.8,2375.3,3.27]
[1725414836162,0.42101,2375.6,2375.2,0.42107]
[1725414836460,0.42101,2375.6,2375.1,3.27]
[1725414836461,0.42105,2375.4,2375.0,0.4211]
[1725414836862,0.42105,2375.4,2374.9,5.4713]
[1725414837059,0.42103,2375.5,2375.0,0.42111]
[1725414837261,0.42102,2375.6,2374.9,5.4713]
[1725414837463,0.42107,2375.3,2374.9,5.4713]
[1725414837666,0.42107,2375.3,2374.9,5.89242]
[1725414838057,4.1665,2375.5,2374.9,5.89242]
[1725414838058,0.42108,2375.2,2374.9,5.4713]
[1725414838562,0.42109,2375.1,2374.8,2.2336]
[1725414838763,0.42115,2374.8,2374.4,0.42121]
[1725414838963,0.42114,2374.9,2374.5,0.4212]
[1725414839356,0.42115,2374.8,2374.4,0.42121]
[1725414839563,0.42114,2374.9,2374.5,0.4212]
[1725414839857,3.2078,2375.0,2374.5,3.27]
[1725414840062,0.42109,2375.1,2374.7,0.42115]
[1725414840567,0.4211,2375.1,2374.7,0.42116]
[1725414840867,3.62887,2375.3,2374.5,3.27]
[1725414841261,0.42111,2375.1,2374.7,0.42115]